Workbook

Sheet Sheet1
C1: Ranking
C2: 1 | D2: 2 | E2: 3 | F2: 4 | G2: 5 | H2: 6 | I2: 7 | J2: 8 | K2: 9 | L2: 10 | M2: 11 | N2: 12 | O2: 13 | P2: 14 | Q2: 15 | R2: 16 | S2: 19 | T2: other
C3: 13626 | D3: 8446 | E3: 6140 | F3: 4582 | G3: 3341 | H3: 2541 | I3: 1839 | J3: 1230 | K3: 787 | L3: 512 | M3: 312 | N3: 179 | O3: 85 | P3: 43 | Q3: 17 | R3: 10 | S3: 1 | U3: 43691
C5: =C3/U3 -> 0.3118720103 | D5: =D3/U3 -> 0.1933121238 | E5: =E3/U3 -> 0.1405323751 | F5: =F3/U3 -> 0.1048728571 | G5: =G3/U3 -> 0.07646883798 | H5: =H3/U3 -> 0.0581584308 | I5: =I3/U3 -> 0.0420910485 | J5: =J3/U3 -> 0.02815225104 | K5: =K3/U3 -> 0.01801286306 | L5: =L3/U3 -> 0.01171866059 | M5: =M3/U3 -> 0.007141058799 | N5: =N3/U3 -> 0.004096953606 | O5: =O3/U3 -> 0.001945480763 | P5: =P3/U3 -> 0.0009841843858 | Q5: =Q3/U3 -> 0.0003890961525 | R5: =R3/U3 -> 0.0002288800897 | S5: =S3/U3 -> 2.288800897e-05 | T5: =T3/U3 -> 0
C6: =(1/(C3/$U$3)) -> 3.206443564 | D6: =(1/(D3/$U$3)) -> 5.172981293 | E6: 7.115798046 | F6: 9.53535574 | G6: 13.07722239 | H6: 17.19441165 | I6: 23.75802066 | J6: 35.52113821 | K6: 55.5158831 | L6: 85.33398438 | M6: 140.0352564 | N6: 244.0837989 | O6: 514.0117647 | P6: 1016.069767 | Q6: 2570.058824 | R6: 4369.1 | S6: 43691
A7: # runners | B7: Price range | L7: 1 | M7: 2 | N7: 3 | O7: 4 | P7: 5
A8: 5 | B8: "=$1.30-=<$1.60 | C8: =C6 -> 3.206443564 | D8: =D6 -> 5.172981293 | E8: 7.115798046 | F8: 9.53535574 | G8: 13.07722239 | L8: 1.89 | M8: 5.95 | N8: 8.79 | O8: 12.76 | P8: 40.67 | Q8: 5 runners @ =<1.60
A9: 5 | B9: "=$1.61-=<$1.90 | C9: =C6 -> 3.206443564 | D9: =D6 -> 5.172981293 | E9: 7.115798046 | F9: 9.53535574 | G9: 13.07722239
A10: 5 | B10: "=$1.91-=<$2.20 | C10: =C8 -> 3.206443564 | D10: 5.172981293 | E10: 7.115798046 | F10: 9.53535574 | G10: 13.07722239
A11: 5 | B11: "=$2.21-=<$2.60 | C11: =C9 -> 3.206443564 | D11: 5.172981293 | E11: 7.115798046 | F11: 9.53535574 | G11: 13.07722239
A12: 5 | B12: "=$2.61-=<$3.00 | C12: =C10 -> 3.206443564 | D12: 5.172981293 | E12: 7.115798046 | F12: 9.53535574 | G12: 13.07722239
A13: 5 | B13: "=$3.01-=<$3.50 | C13: =C11 -> 3.206443564 | D13: 5.172981293 | E13: 7.115798046 | F13: 9.53535574 | G13: 13.07722239
A14: 5 | B14: "=$3.51-=<$4.10 | C14: =C12 -> 3.206443564 | D14: 5.172981293 | E14: 7.115798046 | F14: 9.53535574 | G14: 13.07722239
A15: 6 | B15: "=$1.30-=<$1.60 | C15: =C13 -> 3.206443564 | D15: 5.172981293 | E15: 7.115798046 | F15: 9.53535574 | G15: 13.07722239 | H15: =H6 -> 17.19441165
A16: 6 | B16: "=$1.61-=<$1.90 | C16: =C14 -> 3.206443564 | D16: 5.172981293 | E16: 7.115798046 | F16: 9.53535574 | G16: 13.07722239 | H16: =H15 -> 17.19441165
A17: 6 | B17: "=$1.91-=<$2.20 | C17: =C15 -> 3.206443564 | D17: 5.172981293 | E17: 7.115798046 | F17: 9.53535574 | G17: 13.07722239 | H17: =H16 -> 17.19441165
A18: 6 | B18: "=$2.21-=<$2.60 | C18: =C16 -> 3.206443564 | D18: 5.172981293 | E18: 7.115798046 | F18: 9.53535574 | G18: 13.07722239 | H18: 17.19441165
A19: 6 | B19: "=$2.61-=<$3.00 | C19: =C17 -> 3.206443564 | D19: 5.172981293 | E19: 7.115798046 | F19: 9.53535574 | G19: 13.07722239 | H19: 17.19441165
A20: 6 | B20: "=$3.01-=<$3.50 | C20: =C18 -> 3.206443564 | D20: 5.172981293 | E20: 7.115798046 | F20: 9.53535574 | G20: 13.07722239 | H20: 17.19441165
A21: 6 | B21: "=$3.51-=<$4.10 | C21: =C19 -> 3.206443564 | D21: 5.172981293 | E21: 7.115798046 | F21: 9.53535574 | G21: 13.07722239 | H21: 17.19441165
A22: 7 | B22: "=$1.30-=<$1.60 | C22: 3.206443564 | D22: 5.172981293 | E22: 7.115798046 | F22: 9.53535574 | G22: 13.07722239 | H22: =H21 -> 17.19441165 | I22: =I6 -> 23.75802066
A23: 7 | B23: "=$1.61-=<$1.90 | C23: =C21 -> 3.206443564 | D23: 5.172981293 | E23: 7.115798046 | F23: 9.53535574 | G23: 13.07722239 | H23: =H22 -> 17.19441165 | I23: =I6 -> 23.75802066
A24: 7 | B24: "=$1.91-=<$2.20 | C24: =C22 -> 3.206443564 | D24: 5.172981293 | E24: 7.115798046 | F24: 9.53535574 | G24: 13.07722239 | H24: 17.19441165 | I24: =I22 -> 23.75802066
A25: 7 | B25: "=$2.21-=<$2.60 | C25: =C23 -> 3.206443564 | D25: 5.172981293 | E25: 7.115798046 | F25: 9.53535574 | G25: 13.07722239 | H25: 17.19441165 | I25: =I23 -> 23.75802066
A26: 7 | B26: "=$2.61-=<$3.00 | C26: =C24 -> 3.206443564 | D26: 5.172981293 | E26: 7.115798046 | F26: 9.53535574 | G26: 13.07722239 | H26: 17.19441165 | I26: 23.75802066
A27: 7 | B27: "=$3.01-=<$3.50 | C27: =C25 -> 3.206443564 | D27: 5.172981293 | E27: 7.115798046 | F27: 9.53535574 | G27: 13.07722239 | H27: 17.19441165 | I27: 23.75802066
A28: 7 | B28: "=$3.51-=<$4.10 | C28: =C26 -> 3.206443564 | D28: =D26 -> 5.172981293 | E28: 7.115798046 | F28: 9.53535574 | G28: 13.07722239 | H28: 17.19441165 | I28: 23.75802066
A29: 8 | B29: "=$1.30-=<$1.60 | C29: =C27 -> 3.206443564 | D29: 5.172981293 | E29: 7.115798046 | F29: 9.53535574 | G29: 13.07722239 | H29: 17.19441165 | I29: 23.75802066 | J29: 35.52
A30: 8 | B30: "=$1.61-=<$1.90 | C30: =C28 -> 3.206443564 | D30: 5.172981293 | E30: 7.115798046 | F30: 9.53535574 | G30: 13.07722239 | H30: 17.19441165 | I30: 23.75802066 | J30: 35.52
A31: 8 | B31: "=$1.91-=<$2.20 | C31: =C29 -> 3.206443564 | D31: 5.172981293 | E31: 7.115798046 | F31: 9.53535574 | G31: 13.07722239 | H31: 17.19441165 | I31: 23.75802066 | J31: 35.52
A32: 8 | B32: "=$2.21-=<$2.60 | C32: =C30 -> 3.206443564 | D32: 5.172981293 | E32: 7.115798046 | F32: 9.53535574 | G32: 13.07722239 | H32: 17.19441165 | I32: 23.75802066 | J32: 35.52
A33: 8 | B33: "=$2.61-=<$3.00 | C33: =C31 -> 3.206443564 | D33: 5.172981293 | E33: 7.115798046 | F33: 9.53535574 | G33: 13.07722239 | H33: 17.19441165 | I33: 23.75802066 | J33: 35.52
A34: 8 | B34: "=$3.01-=<$3.50 | C34: =C32 -> 3.206443564 | D34: 5.172981293 | E34: 7.115798046 | F34: 9.53535574 | G34: 13.07722239 | H34: 17.19441165 | I34: 23.75802066 | J34: 35.52
A35: 8 | B35: "=$3.51-=<$4.10 | C35: =C33 -> 3.206443564 | D35: 5.172981293 | E35: 7.115798046 | F35: 9.53535574 | G35: 13.07722239 | H35: 17.19441165 | I35: 23.75802066 | J35: 35.52
A36: 9 | B36: "=$1.30-=<$1.60 | C36: =C34 -> 3.206443564 | D36: 5.172981293 | E36: 7.115798046 | F36: 9.53535574 | G36: 13.07722239 | H36: 17.19441165 | I36: 23.75802066 | J36: 35.52 | K36: 55.52
A37: 9 | B37: "=$1.61-=<$1.90 | C37: =C35 -> 3.206443564 | D37: 5.172981293 | E37: 7.115798046 | F37: 9.53535574 | G37: 13.07722239 | H37: 17.19441165 | I37: 23.75802066 | J37: 35.52 | K37: 55.52
A38: 9 | B38: "=$1.91-=<$2.20 | C38: =C36 -> 3.206443564 | D38: 5.172981293 | E38: 7.115798046 | F38: 9.53535574 | G38: 13.07722239 | H38: 17.19441165 | I38: 23.75802066 | J38: 35.52 | K38: 55.52
A39: 9 | B39: "=$2.21-=<$2.60 | C39: =C37 -> 3.206443564 | D39: 5.172981293 | E39: 7.115798046 | F39: 9.53535574 | G39: 13.07722239 | H39: 17.19441165 | I39: 23.75802066 | J39: 35.52 | K39: 55.52
A40: 9 | B40: "=$2.61-=<$3.00 | C40: =C38 -> 3.206443564 | D40: 5.172981293 | E40: 7.115798046 | F40: 9.53535574 | G40: 13.07722239 | H40: 17.19441165 | I40: 23.75802066 | J40: 35.52 | K40: 55.52
A41: 9 | B41: "=$3.01-=<$3.50 | C41: =C39 -> 3.206443564 | D41: 5.172981293 | E41: 7.115798046 | F41: 9.53535574 | G41: 13.07722239 | H41: 17.19441165 | I41: 23.75802066 | J41: 35.52 | K41: 55.52
A42: 9 | B42: "=$3.51-=<$4.10 | C42: =C40 -> 3.206443564 | D42: 5.172981293 | E42: 7.115798046 | F42: 9.53535574 | G42: 13.07722239 | H42: 17.19441165 | I42: 23.75802066 | J42: 35.52 | K42: 55.52
A43: 10 | B43: "=$1.30-=<$1.60 | C43: =C41 -> 3.206443564 | D43: 5.172981293 | E43: 7.115798046 | F43: 9.53535574 | G43: 13.07722239 | H43: 17.19441165 | I43: 23.75802066 | J43: 35.52 | K43: 55.52 | L43: 85.33
A44: 10 | B44: "=$1.61-=<$1.90 | C44: =C42 -> 3.206443564 | D44: 5.172981293 | E44: 7.115798046 | F44: 9.53535574 | G44: 13.07722239 | H44: 17.19441165 | I44: 23.75802066 | J44: 35.52 | K44: 55.52 | L44: 85.33
A45: 10 | B45: "=$1.91-=<$2.20 | C45: =C43 -> 3.206443564 | D45: 5.172981293 | E45: 7.115798046 | F45: 9.53535574 | G45: 13.07722239 | H45: 17.19441165 | I45: 23.75802066 | J45: 35.52 | K45: 55.52 | L45: 85.33
A46: 10 | B46: "=$2.21-=<$2.60 | C46: =C44 -> 3.206443564 | D46: 5.172981293 | E46: 7.115798046 | F46: 9.53535574 | G46: 13.07722239 | H46: 17.19441165 | I46: 23.75802066 | J46: 35.52 | K46: 55.52 | L46: 85.33
A47: 10 | B47: "=$2.61-=<$3.00 | C47: =C45 -> 3.206443564 | D47: 5.172981293 | E47: 7.115798046 | F47: 9.53535574 | G47: 13.07722239 | H47: 17.19441165 | I47: 23.75802066 | J47: 35.52 | K47: 55.52 | L47: 85.33
A48: 10 | B48: "=$3.01-=<$3.50 | C48: =C46 -> 3.206443564 | D48: 5.172981293 | E48: 7.115798046 | F48: 9.53535574 | G48: 13.07722239 | H48: 17.19441165 | I48: 23.75802066 | J48: 35.52 | K48: 55.52 | L48: 85.33
A49: 10 | B49: "=$3.51-=<$4.10 | C49: =C47 -> 3.206443564 | D49: 5.172981293 | E49: 7.115798046 | F49: 9.53535574 | G49: 13.07722239 | H49: 17.19441165 | I49: 23.75802066 | J49: 35.52 | K49: 55.52 | L49: 85.33
A50: 11 | B50: "=$1.30-=<$1.60 | C50: =C48 -> 3.206443564 | D50: 5.172981293 | E50: 7.115798046 | F50: 9.53535574 | G50: 13.07722239 | H50: 17.19441165 | I50: 23.75802066 | J50: 35.52 | K50: 55.52 | L50: 85.33 | M50: 140.04
A51: 11 | B51: "=$1.61-=<$1.90 | C51: =C49 -> 3.206443564 | D51: 5.172981293 | E51: 7.115798046 | F51: 9.53535574 | G51: 13.07722239 | H51: 17.19441165 | I51: 23.75802066 | J51: 35.52 | K51: 55.52 | L51: 85.33 | M51: 140.04
A52: 11 | B52: "=$1.91-=<$2.20 | C52: =C50 -> 3.206443564 | D52: 5.172981293 | E52: 7.115798046 | F52: 9.53535574 | G52: 13.07722239 | H52: 17.19441165 | I52: 23.75802066 | J52: 35.52 | K52: 55.52 | L52: 85.33 | M52: 140.04
A53: 11 | B53: "=$2.21-=<$2.60 | C53: =C51 -> 3.206443564 | D53: 5.172981293 | E53: 7.115798046 | F53: 9.53535574 | G53: 13.07722239 | H53: 17.19441165 | I53: 23.75802066 | J53: 35.52 | K53: 55.52 | L53: 85.33 | M53: 140.04
A54: 11 | B54: "=$2.61-=<$3.00 | C54: =C52 -> 3.206443564 | D54: 5.172981293 | E54: 7.115798046 | F54: 9.53535574 | G54: 13.07722239 | H54: 17.19441165 | I54: 23.75802066 | J54: 35.52 | K54: 55.52 | L54: 85.33 | M54: 140.04
A55: 11 | B55: "=$3.01-=<$3.50 | C55: =C53 -> 3.206443564 | D55: 5.172981293 | E55: 7.115798046 | F55: 9.53535574 | G55: 13.07722239 | H55: 17.19441165 | I55: 23.75802066 | J55: 35.52 | K55: 55.52 | L55: 85.33 | M55: 140.04
A56: 11 | B56: "=$3.51-=<$4.10 | C56: =C54 -> 3.206443564 | D56: 5.172981293 | E56: 7.115798046 | F56: 9.53535574 | G56: 13.07722239 | H56: 17.19441165 | I56: 23.75802066 | J56: 35.52 | K56: 55.52 | L56: 85.33 | M56: 140.04
A57: 12 | B57: "=$1.30-=<$1.60 | C57: =C55 -> 3.206443564 | D57: 5.172981293 | E57: 7.115798046 | F57: 9.53535574 | G57: 13.07722239 | H57: 17.19441165 | I57: 23.75802066 | J57: 35.52 | K57: 55.52 | L57: 85.33 | M57: 140.04 | N57: 200
A58: 12 | B58: "=$1.61-=<$1.90 | C58: =C56 -> 3.206443564 | D58: 5.172981293 | E58: 7.115798046 | F58: 9.53535574 | G58: 13.07722239 | H58: 17.19441165 | I58: 23.75802066 | J58: 35.52 | K58: 55.52 | L58: 85.33 | M58: 140.04 | N58: 200
A59: 12 | B59: "=$1.91-=<$2.20 | C59: =C57 -> 3.206443564 | D59: 5.172981293 | E59: 7.115798046 | F59: 9.53535574 | G59: 13.07722239 | H59: 17.19441165 | I59: 23.75802066 | J59: 35.52 | K59: 55.52 | L59: 85.33 | M59: 140.04 | N59: 200
A60: 12 | B60: "=$2.21-=<$2.60 | C60: =C58 -> 3.206443564 | D60: 5.172981293 | E60: 7.115798046 | F60: 9.53535574 | G60: 13.07722239 | H60: 17.19441165 | I60: 23.75802066 | J60: 35.52 | K60: 55.52 | L60: 85.33 | M60: 140.04 | N60: 200
A61: 12 | B61: "=$2.61-=<$3.00 | C61: =C59 -> 3.206443564 | D61: 5.172981293 | E61: 7.115798046 | F61: 9.53535574 | G61: 13.07722239 | H61: 17.19441165 | I61: 23.75802066 | J61: 35.52 | K61: 55.52 | L61: 85.33 | M61: 140.04 | N61: 200
A62: 12 | B62: "=$3.01-=<$3.50 | C62: =C60 -> 3.206443564 | D62: 5.172981293 | E62: 7.115798046 | F62: 9.53535574 | G62: 13.07722239 | H62: 17.19441165 | I62: 23.75802066 | J62: 35.52 | K62: 55.52 | L62: 85.33 | M62: 140.04 | N62: 200
A63: 12 | B63: "=$3.51-=<$4.10 | C63: =C61 -> 3.206443564 | D63: 5.172981293 | E63: 7.115798046 | F63: 9.53535574 | G63: 13.07722239 | H63: 17.19441165 | I63: 23.75802066 | J63: 35.52 | K63: 55.52 | L63: 85.33 | M63: 140.04 | N63: 200
A64: 13 | B64: "=$1.30-=<$1.60 | C64: =C62 -> 3.206443564 | D64: 5.172981293 | E64: 7.115798046 | F64: 9.53535574 | G64: 13.07722239 | H64: 17.19441165 | I64: 23.75802066 | J64: 35.52 | K64: 55.52 | L64: 85.33 | M64: 140.04 | N64: 200 | O64: 200
A65: 13 | B65: "=$1.61-=<$1.90 | C65: =C63 -> 3.206443564 | D65: 5.172981293 | E65: 7.115798046 | F65: 9.53535574 | G65: 13.07722239 | H65: 17.19441165 | I65: 23.75802066 | J65: 35.52 | K65: 55.52 | L65: 85.33 | M65: 140.04 | N65: 200 | O65: 200
A66: 13 | B66: "=$1.91-=<$2.20 | C66: =C64 -> 3.206443564 | D66: 5.172981293 | E66: 7.115798046 | F66: 9.53535574 | G66: 13.07722239 | H66: 17.19441165 | I66: 23.75802066 | J66: 35.52 | K66: 55.52 | L66: 85.33 | M66: 140.04 | N66: 200 | O66: 200
A67: 13 | B67: "=$2.21-=<$2.60 | C67: =C65 -> 3.206443564 | D67: 5.172981293 | E67: 7.115798046 | F67: 9.53535574 | G67: 13.07722239 | H67: 17.19441165 | I67: 23.75802066 | J67: 35.52 | K67: 55.52 | L67: 85.33 | M67: 140.04 | N67: 200 | O67: 200
A68: 13 | B68: "=$2.61-=<$3.00 | C68: =C66 -> 3.206443564 | D68: 5.172981293 | E68: 7.115798046 | F68: 9.53535574 | G68: 13.07722239 | H68: 17.19441165 | I68: 23.75802066 | J68: 35.52 | K68: 55.52 | L68: 85.33 | M68: 140.04 | N68: 200 | O68: 200
A69: 13 | B69: "=$3.01-=<$3.50 | C69: =C67 -> 3.206443564 | D69: 5.172981293 | E69: 7.115798046 | F69: 9.53535574 | G69: 13.07722239 | H69: 17.19441165 | I69: 23.75802066 | J69: 35.52 | K69: 55.52 | L69: 85.33 | M69: 140.04 | N69: 200 | O69: 200
A70: 13 | B70: "=$3.51-=<$4.10 | C70: =C68 -> 3.206443564 | D70: 5.172981293 | E70: 7.115798046 | F70: 9.53535574 | G70: 13.07722239 | H70: 17.19441165 | I70: 23.75802066 | J70: 35.52 | K70: 55.52 | L70: 85.33 | M70: 140.04 | N70: 200 | O70: 200
A71: 14 | B71: "=$1.30-=<$1.60 | C71: =C69 -> 3.206443564 | D71: 5.172981293 | E71: 7.115798046 | F71: 9.53535574 | G71: 13.07722239 | H71: 17.19441165 | I71: 23.75802066 | J71: 35.52 | K71: 55.52 | L71: 85.33 | M71: 140.04 | N71: 200 | O71: 200 | P71: 200
A72: 14 | B72: "=$1.61-=<$1.90 | C72: =C70 -> 3.206443564 | D72: 5.172981293 | E72: 7.115798046 | F72: 9.53535574 | G72: 13.07722239 | H72: 17.19441165 | I72: 23.75802066 | J72: 35.52 | K72: 55.52 | L72: 85.33 | M72: 140.04 | N72: 200 | O72: 200 | P72: 200
A73: 14 | B73: "=$1.91-=<$2.20 | C73: =C71 -> 3.206443564 | D73: 5.172981293 | E73: 7.115798046 | F73: 9.53535574 | G73: 13.07722239 | H73: 17.19441165 | I73: 23.75802066 | J73: 35.52 | K73: 55.52 | L73: 85.33 | M73: 140.04 | N73: 200 | O73: 200 | P73: 200
A74: 14 | B74: "=$2.21-=<$2.60 | C74: =C72 -> 3.206443564 | D74: 5.172981293 | E74: 7.115798046 | F74: 9.53535574 | G74: 13.07722239 | H74: 17.19441165 | I74: 23.75802066 | J74: 35.52 | K74: 55.52 | L74: 85.33 | M74: 140.04 | N74: 200 | O74: 200 | P74: 200
A75: 14 | B75: "=$2.61-=<$3.00 | C75: =C73 -> 3.206443564 | D75: 5.172981293 | E75: 7.115798046 | F75: 9.53535574 | G75: 13.07722239 | H75: 17.19441165 | I75: 23.75802066 | J75: 35.52 | K75: 55.52 | L75: 85.33 | M75: 140.04 | N75: 200 | O75: 200 | P75: 200
A76: 14 | B76: "=$3.01-=<$3.50 | C76: =C74 -> 3.206443564 | D76: 5.172981293 | E76: 7.115798046 | F76: 9.53535574 | G76: 13.07722239 | H76: 17.19441165 | I76: 23.75802066 | J76: 35.52 | K76: 55.52 | L76: 85.33 | M76: 140.04 | N76: 200 | O76: 200 | P76: 200
A77: 14 | B77: "=$3.51-=<$4.10 | C77: =C75 -> 3.206443564 | D77: 5.172981293 | E77: 7.115798046 | F77: 9.53535574 | G77: 13.07722239 | H77: 17.19441165 | I77: 23.75802066 | J77: 35.52 | K77: 55.52 | L77: 85.33 | M77: 140.04 | N77: 200 | O77: 200 | P77: 200
A78: 15 | B78: "=$1.30-=<$1.60 | C78: 3.206443564 | D78: 5.172981293 | E78: 7.115798046 | F78: 9.53535574 | G78: 13.07722239 | H78: 17.19441165 | I78: 23.75802066 | J78: 35.52 | K78: 55.52 | L78: 85.33 | M78: 140.04 | N78: 200 | O78: 200 | P78: 200 | Q78: 200
A79: 15 | B79: "=$1.61-=<$1.90 | C79: =C77 -> 3.206443564 | D79: 5.172981293 | E79: 7.115798046 | F79: 9.53535574 | G79: 13.07722239 | H79: 17.19441165 | I79: 23.75802066 | J79: 35.52 | K79: 55.52 | L79: 85.33 | M79: 140.04 | N79: 200 | O79: 200 | P79: 200 | Q79: 200
A80: 15 | B80: "=$1.91-=<$2.20 | C80: =C78 -> 3.206443564 | D80: 5.172981293 | E80: 7.115798046 | F80: 9.53535574 | G80: 13.07722239 | H80: 17.19441165 | I80: 23.75802066 | J80: 35.52 | K80: 55.52 | L80: 85.33 | M80: 140.04 | N80: 200 | O80: 200 | P80: 200 | Q80: 200
A81: 15 | B81: "=$2.21-=<$2.60 | C81: =C79 -> 3.206443564 | D81: 5.172981293 | E81: 7.115798046 | F81: 9.53535574 | G81: 13.07722239 | H81: 17.19441165 | I81: 23.75802066 | J81: 35.52 | K81: 55.52 | L81: 85.33 | M81: 140.04 | N81: 200 | O81: 200 | P81: 200 | Q81: 200
A82: 15 | B82: "=$2.61-=<$3.00 | C82: =C80 -> 3.206443564 | D82: 5.172981293 | E82: 7.115798046 | F82: 9.53535574 | G82: 13.07722239 | H82: 17.19441165 | I82: 23.75802066 | J82: 35.52 | K82: 55.52 | L82: 85.33 | M82: 140.04 | N82: 200 | O82: 200 | P82: 200 | Q82: 200
A83: 15 | B83: "=$3.01-=<$3.50 | C83: =C81 -> 3.206443564 | D83: 5.172981293 | E83: 7.115798046 | F83: 9.53535574 | G83: 13.07722239 | H83: 17.19441165 | I83: 23.75802066 | J83: 35.52 | K83: 55.52 | L83: 85.33 | M83: 140.04 | N83: 200 | O83: 200 | P83: 200 | Q83: 200
A84: 15 | B84: "=$3.51-=<$4.10 | C84: =C82 -> 3.206443564 | D84: 5.172981293 | E84: 7.115798046 | F84: 9.53535574 | G84: 13.07722239 | H84: 17.19441165 | I84: 23.75802066 | J84: 35.52 | K84: 55.52 | L84: 85.33 | M84: 140.04 | N84: 200 | O84: 200 | P84: 200 | Q84: 200
A85: 16 | B85: "=$1.30-=<$1.60 | C85: 3.206443564 | D85: 5.172981293 | E85: 7.115798046 | F85: 9.53535574 | G85: 13.07722239 | H85: 17.19441165 | I85: 23.75802066 | J85: 35.52 | K85: 55.52 | L85: 85.33 | M85: 140.04 | N85: 200 | O85: 200 | P85: 200 | Q85: 200 | R85: 200
A86: 16 | B86: "=$1.61-=<$1.90 | C86: =C83 -> 3.206443564 | D86: 5.172981293 | E86: 7.115798046 | F86: 9.53535574 | G86: 13.07722239 | H86: 17.19441165 | I86: =I83 -> 23.75802066 | J86: 35.52 | K86: 55.52 | L86: 85.33 | M86: 140.04 | N86: 200 | O86: 200 | P86: 200 | Q86: 200 | R86: 200
A87: 16 | B87: "=$1.91-=<$2.20 | C87: =C84 -> 3.206443564 | D87: 5.172981293 | E87: 7.115798046 | F87: 9.53535574 | G87: 13.07722239 | H87: 17.19441165 | I87: =I84 -> 23.75802066 | J87: 35.52 | K87: 55.52 | L87: 85.33 | M87: 140.04 | N87: 200 | O87: 200 | P87: 200 | Q87: 200 | R87: 200
A88: 16 | B88: "=$2.21-=<$2.60 | C88: =C86 -> 3.206443564 | D88: 5.172981293 | E88: 7.115798046 | F88: 9.53535574 | G88: 13.07722239 | H88: 17.19441165 | I88: 23.75802066 | J88: 35.52 | K88: 55.52 | L88: 85.33 | M88: 140.04 | N88: 200 | O88: 200 | P88: 200 | Q88: 200 | R88: 200
A89: 16 | B89: "=$2.61-=<$3.00 | C89: =C87 -> 3.206443564 | D89: 5.172981293 | E89: 7.115798046 | F89: 9.53535574 | G89: 13.07722239 | H89: 17.19441165 | I89: 23.75802066 | J89: 35.52 | K89: 55.52 | L89: 85.33 | M89: 140.04 | N89: 200 | O89: 200 | P89: 200 | Q89: 200 | R89: 200
A90: 16 | B90: "=$3.01-=<$3.50 | C90: =C88 -> 3.206443564 | D90: 5.172981293 | E90: 7.115798046 | F90: 9.53535574 | G90: 13.07722239 | H90: 17.19441165 | I90: 23.75802066 | J90: 35.52 | K90: 55.52 | L90: 85.33 | M90: 140.04 | N90: 200 | O90: 200 | P90: 200 | Q90: 200 | R90: 200
A91: 16 | B91: "=$3.51-=<$4.10 | C91: =C89 -> 3.206443564 | D91: 5.172981293 | E91: 7.115798046 | F91: 9.53535574 | G91: 13.07722239 | H91: 17.19441165 | I91: 23.75802066 | J91: 35.52 | K91: 55.52 | L91: 85.33 | M91: 140.04 | N91: 200 | O91: 200 | P91: 200 | Q91: 200 | R91: 200
A92: >16 | B92: "=$1.30-=<$1.60 | C92: 3.206443564 | D92: 5.172981293 | E92: 7.115798046 | F92: 9.53535574 | G92: 13.07722239 | H92: 17.19441165 | I92: 23.75802066 | J92: 35.52 | K92: 55.52 | L92: 85.33 | M92: 140.04 | N92: 200 | O92: 200 | P92: 200 | Q92: 200 | R92: 200 | S92: 200
A93: >16 | B93: "=$1.61-=<$1.90 | C93: =C90 -> 3.206443564 | D93: 5.172981293 | E93: 7.115798046 | F93: 9.53535574 | G93: 13.07722239 | H93: 17.19441165 | I93: =I90 -> 23.75802066 | J93: 35.52 | K93: 55.52 | L93: 85.33 | M93: 140.04 | N93: 200 | O93: 200 | P93: 200 | Q93: 200 | R93: 200 | S93: 200
A94: >16 | B94: "=$1.91-=<$2.20 | C94: =C91 -> 3.206443564 | D94: 5.172981293 | E94: 7.115798046 | F94: 9.53535574 | G94: 13.07722239 | H94: 17.19441165 | I94: =I91 -> 23.75802066 | J94: 35.52 | K94: 55.52 | L94: 85.33 | M94: 140.04 | N94: 200 | O94: 200 | P94: 200 | Q94: 200 | R94: 200 | S94: 200
A95: >16 | B95: "=$2.21-=<$2.60 | C95: =C93 -> 3.206443564 | D95: 5.172981293 | E95: 7.115798046 | F95: 9.53535574 | G95: 13.07722239 | H95: 17.19441165 | I95: 23.75802066 | J95: 35.52 | K95: 55.52 | L95: 85.33 | M95: 140.04 | N95: 200 | O95: 200 | P95: 200 | Q95: 200 | R95: 200 | S95: 200
A96: >16 | B96: "=$2.61-=<$3.00 | C96: =C94 -> 3.206443564 | D96: 5.172981293 | E96: 7.115798046 | F96: 9.53535574 | G96: 13.07722239 | H96: 17.19441165 | I96: 23.75802066 | J96: 35.52 | K96: 55.52 | L96: 85.33 | M96: 140.04 | N96: 200 | O96: 200 | P96: 200 | Q96: 200 | R96: 200 | S96: 200
A97: >16 | B97: "=$3.01-=<$3.50 | C97: =C95 -> 3.206443564 | D97: 5.172981293 | E97: 7.115798046 | F97: 9.53535574 | G97: 13.07722239 | H97: 17.19441165 | I97: 23.75802066 | J97: 35.52 | K97: 55.52 | L97: 85.33 | M97: 140.04 | N97: 200 | O97: 200 | P97: 200 | Q97: 200 | R97: 200 | S97: 200
A98: >16 | B98: "=$3.51-=<$4.10 | C98: =C96 -> 3.206443564 | D98: 5.172981293 | E98: 7.115798046 | F98: 9.53535574 | G98: 13.07722239 | H98: 17.19441165 | I98: 23.75802066 | J98: 35.52 | K98: 55.52 | L98: 85.33 | M98: 140.04 | N98: 200 | O98: 200 | P98: 200 | Q98: 200 | R98: 200 | S98: 200
A101: >16 runners @ all price ranges | C101: 293 | D101: 185 | E101: 173 | F101: 136 | G101: 97 | H101: 77 | I101: 65 | J101: 58 | K101: 49 | L101: 47 | M101: 30 | N101: 24 | O101: 19 | P101: 13 | Q101: 9 | R101: 10 | S101: 1 | U101: 1286
C102: =C101/U101 -> 0.2278382582 | D102: =D101/U101 -> 0.1438569207 | E102: =E101/U101 -> 0.134525661 | F102: =F101/U101 -> 0.1057542768 | G102: =G101/U101 -> 0.07542768274 | H102: =H101/U101 -> 0.0598755832 | I102: =I101/U101 -> 0.05054432348 | J102: =J101/U101 -> 0.04510108865 | K102: =K101/U101 -> 0.03810264386 | L102: =L101/U101 -> 0.0365474339 | M102: =M101/U101 -> 0.0233281493 | N102: =N101/U101 -> 0.01866251944 | O102: =O101/U101 -> 0.01477449456 | P102: =P101/U101 -> 0.0101088647 | Q102: =Q101/U101 -> 0.00699844479 | R102: =R101/U101 -> 0.007776049767 | S102: =S101/U101 -> 0.0007776049767
C103: =(1/(C101/$U$101)) -> 4.389078498 | D103: =(1/(D101/$U$101)) -> 6.951351351 | E103: 7.433526012 | F103: 9.455882353 | G103: 13.25773196 | H103: 16.7012987 | I103: 19.78461538 | J103: 22.17241379 | K103: 26.24489796 | L103: 27.36170213 | M103: 42.86666667 | N103: 53.58333333 | O103: 67.68421053 | P103: 98.92307692 | Q103: 142.8888889 | R103: 128.6 | S103: 1286

Sheet Sheet2

Sheet Sheet3
